fUST/lending_fUST_20251206
["ID","MTS","AMOUNT","RATE_DAILY","PERIOD"]
[396513151,1765024799283,-169.70168396,9.654e-05,2]
[396513152,1765024804238,-412.69492243,9.654e-05,2]
[396513153,1765024805255,500.0,9.556e-05,2]
[396513154,1765024805313,500.0,9.556e-05,2]
[396513155,1765024805367,500.0,9.556e-05,2]
[396513156,1765024805468,500.0,9.556e-05,2]
[396513157,1765024805502,500.0,9.556e-05,2]
[396513158,1765024805540,500.0,9.556e-05,2]
[396513159,1765024805580,500.0,9.556e-05,2]
[396513160,1765024805627,500.0,9.556e-05,2]
[396513161,1765024805685,500.0,9.556e-05,2]
[396513162,1765024805718,500.0,9.556e-05,2]
[396513163,1765024805750,500.0,9.556e-05,2]
[396513164,1765024805782,500.0,9.556e-05,2]
[396513165,1765024805819,124.74472225,9.556e-05,2]
[396513166,1765024805843,375.25527775,9.556e-05,2]
[396513167,1765024805891,500.0,9.556e-05,2]
[396513168,1765024805939,500.0,9.556e-05,2]
[396513169,1765024805977,500.0,9.556e-05,2]
[396513170,1765024806019,546.30858793,9.556e-05,2]
[396513171,1765024806056,500.0,9.556e-05,2]
[396513172,1765024806143,500.0,9.556e-05,2]
[396513173,1765024806227,500.0,9.556e-05,2]
[396513174,1765024806289,500.0,9.556e-05,2]
[396513175,1765024806339,500.0,9.556e-05,2]
[396513176,1765024809622,1200.0,9.653e-05,2]
[396513177,1765024813609,188.75086641,9.557e-05,2]
[396513178,1765024813730,-370.47752763,9.654e-05,2]
[396513179,1765024815395,412.69492243,9.556e-05,2]
[396513180,1765024816301,951.62,8.3e-05,2]
[396513181,1765024816400,-181.20625911,9.654e-05,2]
[396513182,1765024816584,951.62,8.4e-05,2]
[396513183,1765024816857,951.62,8.5e-05,2]
[396513184,1765024817170,951.62,8.6e-05,2]
[396513185,1765024817487,951.62,8.7e-05,2]
[396513186,1765024817771,951.62,8.8e-05,2]
[396513187,1765024818268,951.62,9e-05,2]
[396513188,1765024818301,-412.30020494,9.654e-05,2]
[396513189,1765024818860,951.62,9.1e-05,2]
[396513190,1765024818952,585.60421116,9.2e-05,2]
[396513191,1765024818977,366.01578884,9.2e-05,2]
[396513192,1765024819146,951.62,9.3e-05,2]
[396513193,1765024819358,951.62,9.4e-05,2]
[396513194,1765024819620,951.62,9.5e-05,2]
[396513195,1765024821019,-321.85244931,9.654e-05,2]
[396513196,1765024822464,-361.01926584,9.654e-05,2]
[396513197,1765024823562,500.0,9.556e-05,2]
[396513198,1765024823627,500.0,9.556e-05,2]
[396513199,1765024823678,500.0,9.556e-05,2]
[396513200,1765024823724,500.0,9.556e-05,2]
[396513201,1765024823763,500.0,9.556e-05,2]
[396513202,1765024823796,500.0,9.556e-05,2]
[396513203,1765024823831,500.0,9.556e-05,2]
[396513204,1765024823864,500.0,9.556e-05,2]
[396513205,1765024823900,318.94096706,9.556e-05,2]
[396513206,1765024823993,500.0,9.556e-05,2]
[396513207,1765024824037,500.0,9.556e-05,2]
[396513208,1765024824088,500.0,9.556e-05,2]
[396513209,1765024824176,500.0,9.556e-05,2]
[396513210,1765024824425,460.1932441,9.556e-05,2]
[396513211,1765024824453,39.8067559,9.556e-05,2]
[396513212,1765024824492,500.0,9.556e-05,2]
[396513213,1765024824584,500.0,9.556e-05,2]
[396513214,1765024824672,500.0,9.556e-05,2]
[396513215,1765024824713,500.0,9.556e-05,2]
[396513216,1765024824757,500.0,9.556e-05,2]
[396513217,1765024824797,500.0,9.556e-05,2]
[396513218,1765024829679,-317.12828485,9.654e-05,2]
[396513219,1765024831365,-190.99930578,9.654e-05,2]
[396513220,1765024833109,220.49026239,9.653e-05,2]
[396513221,1765024833158,500.0,9.653e-05,2]
[396513222,1765024833197,500.0,9.653e-05,2]
[396513223,1765024833273,500.0,9.653e-05,2]
[396513224,1765024833325,500.0,9.653e-05,2]
[396513225,1765024833369,500.0,9.653e-05,2]
[396513226,1765024833439,500.0,9.653e-05,2]
[396513227,1765024833488,500.0,9.653e-05,2]
[396513228,1765024833538,500.0,9.653e-05,2]
[396513229,1765024833589,533.19937431,9.653e-05,2]
[396513230,1765024833624,500.0,9.653e-05,2]
[396513231,1765024833690,500.0,9.653e-05,2]
[396513232,1765024833751,500.0,9.653e-05,2]
[396513233,1765024833814,500.0,9.653e-05,2]
[396513234,1765024833867,206.5136074,9.653e-05,2]
[396513235,1765024833895,293.4863926,9.653e-05,2]
[396513236,1765024833953,500.0,9.653e-05,2]
[396513237,1765024834021,500.0,9.653e-05,2]
[396513238,1765024834062,500.0,9.653e-05,2]
[396513239,1765024834108,500.0,9.653e-05,2]
[396513240,1765024834180,155.98783741,9.653e-05,2]
[396513241,1765024834225,500.0,9.653e-05,2]
[396513242,1765024834259,-260.18331902,9.654e-05,2]
[396513243,1765024834295,500.0,9.653e-05,2]
[396513244,1765024834508,500.0,9.653e-05,2]
[396513245,1765024834560,500.0,9.653e-05,2]
[396513246,1765024834622,500.0,9.653e-05,2]
[396513247,1765024834658,500.0,9.653e-05,2]
[396513248,1765024834695,500.0,9.653e-05,2]
[396513249,1765024834748,500.0,9.653e-05,2]
[396513250,1765024834794,500.0,9.653e-05,2]
[396513251,1765024834841,500.0,9.653e-05,2]
[396513252,1765024834892,500.0,9.653e-05,2]
[396513253,1765024834944,500.0,9.653e-05,2]
[396513254,1765024834985,500.0,9.653e-05,2]
[396513255,1765024835026,500.0,9.653e-05,2]
[396513256,1765024835074,500.0,9.653e-05,2]
[396513257,1765024835141,50.53576999,9.653e-05,2]
[396513258,1765024835194,150.0,7.715e-05,2]
[396513259,1765024835782,173.24388771,0.00012975,6]
[396513260,1765024838487,-155.38,8.416e-05,2]
[396513261,1765024853575,-233.08,9.117e-05,2]
[396513262,1765024868881,-152.32,9.461e-05,2]
[396513265,1765024875469,753.7,8.3e-05,2]
[396513266,1765024875725,753.7,8.4e-05,2]
[396513267,1765024876034,753.7,8.5e-05,2]
[396513268,1765024876303,753.7,8.6e-05,2]
[396513269,1765024876574,753.7,8.7e-05,2]
[396513270,1765024876856,753.7,8.8e-05,2]
[396513271,1765024877175,753.7,9e-05,2]
[396513272,1765024877429,753.7,9.1e-05,2]
[396513273,1765024877877,753.7,9.2e-05,2]
[396513274,1765024878174,753.7,9.3e-05,2]
[396513275,1765024878440,753.7,9.4e-05,2]
[396513276,1765024881122,-180.83073419,9.5e-05,2]
[396513277,1765024884201,-572.86926581,9.5e-05,2]
[396513278,1765024895537,418.75086641,9.461e-05,2]
[396513279,1765024899612,-418.75086641,9.557e-05,2]
[396513280,1765024903668,300.0,9.555e-05,2]
[396513281,1765024905249,4773.9948314,9.55e-05,2]
[396513288,1765024914952,150.0,7.393e-05,2]
[396513289,1765024915356,253.67,8.066e-05,2]
[396513291,1765024915775,380.5,8.738e-05,2]
[396513292,1765024916166,507.34,9.41e-05,2]
[396513294,1765024918569,300.0,9.555e-05,2]
[396513316,1765024926416,300.0,9.555e-05,2]
[396513317,1765024935436,300.0,9.555e-05,2]
[396513318,1765024937774,578.9,8.3e-05,2]
[396513319,1765024938063,578.9,8.4e-05,2]
[396513320,1765024938381,578.9,8.5e-05,2]
[396513321,1765024938713,578.9,8.6e-05,2]
[396513322,1765024939005,578.9,8.7e-05,2]
[396513323,1765024943901,300.0,9.555e-05,2]
[396513324,1765024944618,578.9,8.8e-05,2]
[396513325,1765024944912,578.9,9e-05,2]
[396513326,1765024945190,578.9,9.1e-05,2]
[396513327,1765024946048,578.9,9.2e-05,2]
[396513328,1765024946174,578.9,9.3e-05,2]
[396513329,1765024946378,578.9,9.4e-05,2]
[396513330,1765024946547,578.9,9.5e-05,2]
[396513333,1765024952013,300.0,9.555e-05,2]
[396513334,1765024960330,300.0,9.555e-05,2]
[396513336,1765024968847,225.91104159,9.555e-05,2]
[396513352,1765024976840,7437.39895841,9.555e-05,2]
[396513353,1765024976866,4710.03101519,9.555e-05,2]
[396513355,1765024984895,5289.97898481,9.555e-05,2]
[396513356,1765024984921,6709.38350434,9.555e-05,2]
[396513359,1765024992781,300.0,9.554e-05,2]
[396513360,1765024993514,150.0,7.657e-05,2]
[396513362,1765024993915,220.79,8.353e-05,2]
[396513363,1765024994333,331.19,9.05e-05,2]
[396513364,1765024994374,439.97,8.3e-05,2]
[396513365,1765024994761,439.97,8.4e-05,2]
[396513367,1765024995035,439.97,8.5e-05,2]
[396513368,1765024995315,439.97,8.6e-05,2]
[396513369,1765024995747,439.97,8.7e-05,2]
[396513371,1765024996594,88.79649566,8.8e-05,2]
[396513372,1765024996623,351.17350434,8.8e-05,2]
[396513373,1765024997021,439.97,9e-05,2]
[396513374,1765024997361,439.97,9.1e-05,2]
[396513375,1765024997691,439.97,9.2e-05,2]
[396513377,1765024998608,439.97,9.3e-05,2]
[396513378,1765024999048,439.97,9.4e-05,2]
[396513379,1765024999389,439.97,9.5e-05,2]
[396513381,1765025001364,300.0,9.554e-05,2]
[396513389,1765025012942,439.73,8.251e-05,2]
[396513390,1765025016615,300.0,9.554e-05,2]
[396513391,1765025025006,300.0,9.554e-05,2]
[396513392,1765025040792,300.0,9.554e-05,2]
[396513396,1765025048758,300.0,9.554e-05,2]
[396513398,1765025056807,325.58,8.3e-05,2]
[396513399,1765025057102,325.58,8.4e-05,2]
[396513400,1765025057392,325.58,8.5e-05,2]
[396513401,1765025057672,325.58,8.6e-05,2]
[396513402,1765025057994,325.58,8.7e-05,2]
[396513403,1765025058275,325.58,8.8e-05,2]
[396513404,1765025058562,325.58,9e-05,2]
[396513405,1765025058857,325.58,9.1e-05,2]
[396513406,1765025059205,325.58,9.2e-05,2]
[396513407,1765025059569,325.58,9.3e-05,2]
[396513408,1765025060139,325.58,9.4e-05,2]
[396513409,1765025060247,325.58,9.5e-05,2]
[396513410,1765025062737,16181.0,0.000211,99]
[396513411,1765025064141,265.65887144,9.554e-05,2]
[396513412,1765025072561,150.0,7.652e-05,2]
[396513413,1765025072605,300.0,9.554e-05,2]
[396513414,1765025072839,202.92,8.348e-05,2]
[396513415,1765025073714,304.39,9.043e-05,2]
[396513416,1765025074825,325.47,8.251e-05,2]
[396513417,1765025087689,230.0,9.554e-05,2]
[396513418,1765025095627,6207.20897299,9.554e-05,2]
[396513425,1765025110735,230.0,9.553e-05,2]
[396513427,1765025114647,162.0,5.8e-07,2]
[396513428,1765025115640,240.93,8.3e-05,2]
[396513429,1765025115924,240.93,8.4e-05,2]
[396513430,1765025116280,163.76215557,8.5e-05,2]
[396513431,1765025116309,77.16784443,8.5e-05,2]
[396513432,1765025116797,240.93,8.6e-05,2]
[396513433,1765025117437,240.93,8.7e-05,2]
[396513434,1765025118164,240.93,8.8e-05,2]
[396513435,1765025118485,240.93,9e-05,2]
[396513436,1765025118739,230.0,9.553e-05,2]
[396513437,1765025118785,240.93,9.1e-05,2]
[396513438,1765025119054,240.93,9.2e-05,2]
[396513439,1765025119327,240.93,9.3e-05,2]
[396513440,1765025119603,240.93,9.4e-05,2]
[396513441,1765025120004,240.93,9.5e-05,2]
[396513442,1765025133091,240.89,8.251e-05,2]
[396513443,1765025134066,230.0,9.553e-05,2]
[396513444,1765025141883,230.0,9.553e-05,2]
[396513451,1765025152163,150.0,7.552e-05,2]
[396513452,1765025152552,186.19,8.238e-05,2]
[396513453,1765025153004,279.29,8.925e-05,2]
[396513455,1765025157556,230.0,9.516e-05,2]
[396513459,1765025165580,230.0,9.516e-05,2]
[396513464,1765025176401,178.29,8.3e-05,2]
[396513466,1765025177236,178.29,8.4e-05,2]
[396513467,1765025177823,178.29,8.5e-05,2]
[396513468,1765025178007,178.29,8.6e-05,2]
[396513469,1765025178318,178.29,8.7e-05,2]
[396513470,1765025178764,178.29,8.8e-05,2]
[396513471,1765025178940,178.29,9e-05,2]
[396513472,1765025179237,178.29,9.1e-05,2]
[396513473,1765025179576,178.29,9.2e-05,2]
[396513474,1765025180062,178.29,9.3e-05,2]
[396513475,1765025180375,178.29,9.4e-05,2]
[396513476,1765025180684,178.29,9.5e-05,2]
[396513478,1765025181523,230.0,9.516e-05,2]
[396513482,1765025188411,1000.0,9.555e-05,2]
[396513484,1765025189437,230.0,9.516e-05,2]
[396513485,1765025189470,1000.0,9.555e-05,2]
[396513486,1765025190754,1000.0,9.555e-05,2]
[396513488,1765025191804,1000.0,9.555e-05,2]
[396513490,1765025193111,1000.0,9.555e-05,2]
[396513499,1765025195054,624.16,9.555e-05,2]
[396513500,1765025195079,375.84,9.555e-05,2]
[396513502,1765025196308,1000.0,9.555e-05,2]
[396513503,1765025197311,1000.0,9.555e-05,2]
[396513504,1765025198737,1000.0,9.555e-05,2]
[396513505,1765025199721,178.2,8.251e-05,2]
[396513506,1765025199763,1000.0,9.555e-05,2]
[396513510,1765025200946,1000.0,9.555e-05,2]
[396513511,1765025202135,1000.0,9.555e-05,2]
[396513512,1765025203418,1000.0,9.555e-05,2]
[396513514,1765025204317,1000.0,9.555e-05,2]
[396513515,1765025204583,230.0,9.516e-05,2]
[396513516,1765025205340,1000.0,9.555e-05,2]
[396513518,1765025206326,1000.0,9.555e-05,2]
[396513520,1765025207356,792.25616357,9.555e-05,2]
[396513521,1765025212393,230.0,9.516e-05,2]
[396513522,1765025227736,230.0,9.516e-05,2]
[396513523,1765025230982,150.0,7.544e-05,2]
[396513524,1765025231106,170.53,8.229e-05,2]
[396513525,1765025231380,255.79,8.915e-05,2]
[396513530,1765025235386,153.41,8.3e-05,2]
[396513531,1765025235732,153.41,8.4e-05,2]
[396513532,1765025235772,230.0,9.505e-05,2]
[396513533,1765025235890,153.41,8.5e-05,2]
[396513534,1765025236128,153.41,8.7e-05,2]
[396513535,1765025236474,153.41,8.8e-05,2]
[396513537,1765025236711,151.36159493,8.9e-05,2]
[396513538,1765025236739,2.04840507,8.9e-05,2]
[396513539,1765025237019,153.41,9.1e-05,2]
[396513540,1765025237332,153.41,9.2e-05,2]
[396513541,1765025237630,153.41,9.3e-05,2]
[396513542,1765025237929,153.41,9.5e-05,2]
[396513550,1765025252036,153.41,9.504e-05,2]
[396513564,1765025259735,153.41,9.504e-05,2]
[396513574,1765025275037,153.41,9.504e-05,2]
[396513581,1765025282892,153.41,9.504e-05,2]
[396513590,1765025294617,153.35,8.3e-05,2]
[396513591,1765025294948,153.35,8.4e-05,2]
[396513592,1765025295237,153.35,8.6e-05,2]
[396513593,1765025295682,153.35,8.8e-05,2]
[396513595,1765025295872,153.35,8.9e-05,2]
[396513596,1765025296228,153.35,9.1e-05,2]
[396513597,1765025296501,153.35,9.3e-05,2]
[396513598,1765025296813,153.35,9.5e-05,2]
[396513600,1765025297985,341.05,9.505e-05,2]
[396513605,1765025305858,153.35,9.504e-05,2]
[396513608,1765025311105,150.0,7.533e-05,2]
[396513610,1765025311460,155.86,8.218e-05,2]
[396513611,1765025311952,233.78,8.903e-05,2]
[396513612,1765025312505,311.71,9.588e-05,2]
[396513617,1765025322595,153.35,9.504e-05,2]
[396513621,1765025330548,153.35,9.504e-05,2]
[396513629,1765025343550,250.0,0.00013105,3]
[396513634,1765025343791,250.0,0.00012974,3]
[396513640,1765025345739,300.0,9.552e-05,2]
[396513641,1765025352120,153.35,8.3e-05,2]
[396513642,1765025352411,153.35,8.5e-05,2]
[396513643,1765025352724,153.35,8.7e-05,2]
[396513644,1765025353033,153.35,8.9e-05,2]
[396513645,1765025353321,153.35,9.2e-05,2]
[396513646,1765025353609,153.35,9.4e-05,2]
[396513647,1765025353642,300.0,9.552e-05,2]
[396513648,1765025365532,1000.0,9.588e-05,2]
[396513649,1765025366621,1000.0,9.588e-05,2]
[396513650,1765025367536,1000.0,9.588e-05,2]
[396513651,1765025368675,895.96421519,9.588e-05,2]
[396513652,1765025368850,153.35,9.504e-05,2]
[396513653,1765025376709,153.35,9.504e-05,2]
[396513654,1765025389945,150.0,7.386e-05,2]
[396513655,1765025390275,150.0,8.058e-05,2]
[396513656,1765025390689,201.28,8.729e-05,2]
[396513657,1765025391092,268.37,9.401e-05,2]
[396513658,1765025392152,153.35,9.504e-05,2]
[396513661,1765025400594,153.35,9.504e-05,2]
[396513682,1765025413278,153.35,8.3e-05,2]
[396513684,1765025413668,153.35,8.6e-05,2]
[396513685,1765025413914,153.35,8.9e-05,2]
[396513686,1765025414202,153.35,9.2e-05,2]
[396513687,1765025414482,153.35,9.5e-05,2]
[396513689,1765025416155,202.08,9.528e-05,2]
[396513690,1765025418156,151.0,9.588e-05,2]
[396513692,1765025419226,178.16563476,9.588e-05,2]
[396513695,1765025424011,422.54932746,9.528e-05,2]
[396513710,1765025432710,-193.54932746,9.624e-05,2]
[396513711,1765025432720,-229.0,9.624e-05,2]
[396513712,1765025432730,-500.0,9.648e-05,2]
[396513713,1765025432739,-300.0,9.648e-05,2]
[396513714,1765025432748,-197.65067254,9.648e-05,2]
[396513718,1765025438396,-102.34932746,9.648e-05,2]
[396513719,1765025438406,-300.0,9.648e-05,2]
[396513720,1765025438415,-291.17296235,9.648e-05,2]
[396513721,1765025438427,-8.82703765,9.648e-05,2]
[396513722,1765025438437,-344.81937879,9.648e-05,2]
[396513723,1765025438448,-448.97983424,9.648e-05,2]
[396513769,1765025441064,-3e-08,9.648e-05,2]
[396514028,1765025443586,-300.0,9.648e-05,2]
[396514031,1765025443599,-199.99999997,9.648e-05,2]
[396514033,1765025443609,-500.0,9.648e-05,2]
[396514035,1765025443621,-330.40296555,9.648e-05,2]
[396514048,1765025443745,-169.59703445,9.648e-05,2]
[396514050,1765025443755,-500.0,9.648e-05,2]
[396514052,1765025443764,-223.12614555,9.648e-05,2]
[396514355,1765025446623,-276.87385445,9.648e-05,2]
[396514357,1765025446633,-500.0,9.648e-05,2]
[396514359,1765025446642,-500.0,9.648e-05,2]
[396514361,1765025446651,-500.0,9.648e-05,2]
[396514363,1765025446660,-500.0,9.648e-05,2]
[396514365,1765025446669,-500.0,9.648e-05,2]
[396514367,1765025446679,-500.0,9.648e-05,2]
[396514369,1765025446688,-500.0,9.648e-05,2]
[396514371,1765025446697,-500.0,9.648e-05,2]
[396514373,1765025446706,-500.0,9.648e-05,2]
[396514375,1765025446715,-500.0,9.648e-05,2]
[396514377,1765025446724,-500.0,9.648e-05,2]
[396514379,1765025446733,-295.12614553,9.648e-05,2]
[396514721,1765025450395,727.23067254,9.551e-05,2]
[396514823,1765025462782,469.16926581,9.551e-05,2]
[396514824,1765025468059,150.0,7.389e-05,2]
[396514825,1765025468519,150.0,8.061e-05,2]
[396514826,1765025468749,153.36,8.3e-05,2]
[396514827,1765025468900,171.89,8.733e-05,2]
[396514828,1765025469082,153.36,8.7e-05,2]
[396514832,1765025469311,229.19,9.404e-05,2]
[396514833,1765025469345,153.36,9.1e-05,2]
[396514834,1765025469805,153.36,9.5e-05,2]
[396514835,1765025474317,489.53088424,9.591e-05,2]
[396514836,1765025474341,510.46911576,9.591e-05,2]
[396514837,1765025474425,153.3,8.251e-05,2]
[396514846,1765025500449,666.0,9.591e-05,2]
[396514847,1765025500747,8670.24088424,8.653e-05,2]
[396514848,1765025500772,10000.01,8.653e-05,2]
[396514849,1765025500796,8105.09497686,8.653e-05,2]
[396514855,1765025514452,465.719,9.551e-05,2]
[396514866,1765025529492,153.36,8.3e-05,2]
[396514867,1765025529771,153.36,8.9e-05,2]
[396514868,1765025530205,153.36,9.5e-05,2]
[396514872,1765025538228,300.0,9.521e-05,2]
[396514877,1765025548153,150.0,7.542e-05,2]
[396514878,1765025548611,150.0,8.228e-05,2]
[396514879,1765025549171,150.0,8.913e-05,2]
[396514889,1765025568704,193.5,9.408e-05,2]
[396514890,1765025570753,-193.5,9.503e-05,2]
[396514895,1765025583835,193.5,9.503e-05,2]
[396514897,1765025585646,153.36,8.3e-05,2]
[396514898,1765025585957,153.36,9.2e-05,2]
[396514902,1765025592195,193.5,9.503e-05,2]
[396514906,1765025600540,171.07990304,9.2e-05,2]
[396514909,1765025603403,206.8461797,9.5e-05,2]
[396514912,1765025607861,193.5,9.503e-05,2]
[396514915,1765025615675,193.5,9.503e-05,2]
[396514921,1765025624507,150.0,7.383e-05,2]
[396514922,1765025624907,150.0,8.054e-05,2]
[396514923,1765025625818,150.0,8.725e-05,2]
[396514924,1765025626231,170.59,9.396e-05,2]
[396514931,1765025639505,300.0,9.425e-05,2]
[396514937,1765025645418,153.36,8.3e-05,2]
[396514939,1765025648335,-300.0,9.52e-05,2]
[396514940,1765025648516,-300.0,9.553e-05,2]
[396514942,1765025656272,3715.82932778,9.458e-05,2]
[396514946,1765025661103,-877.08753168,9.554e-05,2]
[396514949,1765025663732,-290.97367503,9.554e-05,2]
[396514950,1765025664836,4259.65845562,9.458e-05,2]
[396514952,1765025666192,-278.57856392,9.554e-05,2]
[396514953,1765025669004,-209.22330538,9.554e-05,2]
[396514955,1765025670413,-281.90283302,9.554e-05,2]
[396514957,1765025671753,217.63067602,9.553e-05,2]
[396514958,1765025673111,-155.76528857,9.554e-05,2]
[396514959,1765025673382,500.0,9.553e-05,2]
[396514960,1765025673431,106.89154058,9.553e-05,2]
[396514961,1765025673460,393.10845942,9.553e-05,2]
[396514962,1765025673504,285.65620859,9.553e-05,2]
[396514963,1765025673551,500.0,9.553e-05,2]
[396514964,1765025673586,500.0,9.553e-05,2]
[396514965,1765025673644,500.0,9.553e-05,2]
[396514966,1765025674189,500.0,9.553e-05,2]
[396514967,1765025674233,500.0,9.553e-05,2]
[396514968,1765025674277,500.0,9.553e-05,2]
[396514969,1765025674309,500.0,9.553e-05,2]
[396514970,1765025674348,500.0,9.553e-05,2]
[396514971,1765025674388,500.0,9.553e-05,2]
[396514972,1765025674440,500.0,9.553e-05,2]
[396514973,1765025674490,500.0,9.553e-05,2]
[396514974,1765025674525,500.0,9.553e-05,2]
[396514975,1765025674572,500.0,9.553e-05,2]
[396514976,1765025674615,330.13702509,9.553e-05,2]
[396514977,1765025674649,500.0,9.553e-05,2]
[396514978,1765025674682,500.0,9.553e-05,2]
[396514979,1765025674728,500.0,9.553e-05,2]
[396514980,1765025674785,500.0,9.553e-05,2]
[396514981,1765025674837,491.1083069,9.553e-05,2]
[396514982,1765025674865,8.8916931,9.553e-05,2]
[396514983,1765025674920,500.0,9.553e-05,2]
[396514984,1765025675156,500.0,9.553e-05,2]
[396514985,1765025675189,500.0,9.553e-05,2]
[396514986,1765025675237,500.0,9.553e-05,2]
[396514987,1765025675298,500.0,9.553e-05,2]
[396514988,1765025675333,177.95437693,9.553e-05,2]
[396514989,1765025675387,500.0,9.553e-05,2]
[396514990,1765025675428,500.0,9.553e-05,2]
[396514991,1765025675480,500.0,9.553e-05,2]
[396514992,1765025675524,500.0,9.553e-05,2]
[396514993,1765025675561,167.04520841,9.553e-05,2]
[396514994,1765025675598,500.0,9.553e-05,2]
[396514995,1765025675651,500.0,9.553e-05,2]
[396514996,1765025675697,500.0,9.553e-05,2]
[396514997,1765025675743,500.0,9.553e-05,2]
[396514998,1765025675813,500.0,9.553e-05,2]
[396514999,1765025675861,500.0,9.553e-05,2]
[396515000,1765025675909,500.0,9.553e-05,2]
[396515001,1765025675974,500.0,9.553e-05,2]
[396515002,1765025676015,500.0,9.553e-05,2]
[396515003,1765025676065,500.0,9.553e-05,2]
[396515004,1765025676111,146.11872156,9.553e-05,2]
[396515005,1765025676138,353.88127844,9.553e-05,2]
[396515006,1765025676180,500.0,9.553e-05,2]
[396515007,1765025676223,500.0,9.553e-05,2]
[396515008,1765025676262,633.33543035,9.553e-05,2]
[396515009,1765025676302,500.0,9.553e-05,2]
[396515010,1765025676338,500.0,9.553e-05,2]
[396515011,1765025676387,500.0,9.553e-05,2]
[396515012,1765025676425,500.0,9.553e-05,2]
[396515014,1765025676463,500.0,9.553e-05,2]
[396515015,1765025676511,500.0,9.553e-05,2]
[396515016,1765025676573,500.0,9.553e-05,2]
[396515017,1765025676604,500.0,9.553e-05,2]
[396515018,1765025676649,500.0,9.553e-05,2]
[396515019,1765025676702,500.0,9.553e-05,2]
[396515020,1765025676815,-272.35276729,9.554e-05,2]
[396515022,1765025679007,-302.58576107,9.554e-05,2]
[396515024,1765025679976,10000.01,9.458e-05,2]
[396515025,1765025680000,1433.13347077,9.458e-05,2]
[396515027,1765025683109,-253.90223388,9.554e-05,2]
[396515029,1765025685610,-221.61461118,9.554e-05,2]
[396515031,1765025688138,-197.48242656,9.554e-05,2]
[396515032,1765025688392,8566.87652923,9.458e-05,2]
[396515033,1765025688417,8377.31084218,9.458e-05,2]
[396515036,1765025693664,-264.36760307,9.554e-05,2]
[396515037,1765025694091,500.0,9.553e-05,2]
[396515038,1765025694125,500.0,9.553e-05,2]
[396515039,1765025694160,500.0,9.553e-05,2]
[396515040,1765025694194,635.07766272,9.553e-05,2]
[396515041,1765025694262,500.0,9.553e-05,2]
[396515042,1765025694305,500.0,9.553e-05,2]
[396515043,1765025694404,329.91580596,9.553e-05,2]
[396515044,1765025694439,500.0,9.553e-05,2]
[396515045,1765025694485,500.0,9.553e-05,2]
[396515047,1765025696020,500.0,9.553e-05,2]
[396515048,1765025696739,4762.91820686,9.458e-05,2]
[396515050,1765025696819,-264.43587518,9.554e-05,2]
[396515051,1765025698882,-213.96167796,9.554e-05,2]
[396515052,1765025699683,150.0,7.406e-05,2]
[396515054,1765025700075,122.09832446,8.079e-05,2]
[396515055,1765025700103,27.90167554,8.079e-05,2]
[396515056,1765025700476,150.06,8.752e-05,2]
[396515057,1765025700873,200.08,9.425e-05,2]
[396515062,1765025701651,-321.79980335,9.554e-05,2]
[396515063,1765025701859,300.0,9.553e-05,2]